Cogmind - Beta 17 @@@ ROGUE MODE // 2026.07.08 @ 06:27:50 Player: nnnnsk Result: Destroyed by S-27 Virus with Autogun Performance ------------- Evolutions (4) 2000 Regions Visited (11) 2200 Robots Destroyed (152) 760 Value Destroyed (5239) 5239 Prototype IDs (30) 600 Alien Tech Used (0) 0 Bonus (524) 524 TOTAL SCORE: 11323 Bonus ------- High Alert Combat Kills 174 Follower Combat Kills 50 Met Imprinter 300 Cogmind --------- Core Integrity 0/850 Matter 233/300 Energy 83/100 System Corruption 10% Temperature Cool (0) Movement Core (50) Location -6/Lower Caves Parts ------- > --- POWER (1) -------- (None) > --- PROPULSION (4) --- (None) > --- UTILITY (7) ------ Advanced Terrain Scanner > --- WEAPON (3) ------- (None) > --- INVENTORY (5) ---- Large Storage Unit Hacking Suite System Shield CR-A16's Pointy Stick Peak State ------------ > --- POWER ------------ Light Angular Momentum Engine > --- PROPULSION ------- Flexi-carbon Leg Armored Leg Thunder Leg Thunder Leg > --- UTILITY ---------- High-capacity Storage Unit Advanced Signal Interpreter Advanced Targeting Computer Target Analyzer Core Analyzer Makeshift Light Armor Plating Makeshift Hacking Suite > --- WEAPON ----------- Cooled Pulse Rifle Coil Gun Heavy Machine Gun > --- INVENTORY -------- Light Fission Core Improved Titanium Leg Thunder Leg Makeshift Heat Sink Large Storage Unit Energy Well Improved Sensor Array Improved Signal Interpreter Advanced Terrain Scanner Core Analyzer Improved Propulsion Shielding Hacking Drone Bay Lightning Gun Beamcaster Beamcaster Improved Heavy Laser Wave Gun Improved Grenade Launcher CR-A16's Pointy Stick [Rating: 74] Favorites ----------- Power Light Angular Momentum Engine Engine Light Angular Momentum Engine Power Core Light Fission Core Propulsion Thunder Leg Treads Light Treads Leg Thunder Leg Utility Large Storage Unit Device Improved Sensor Array Storage Large Storage Unit Processor Advanced Targeting Computer Hackware Makeshift Hacking Suite Protection Makeshift Light Armor Plating Weapon Improved Spread Laser Energy Gun Improved Spread Laser Energy Cannon Improved EM Pulse Cannon Ballistic Gun Gauss Rifle Ballistic Cannon Advanced Assault Cannon Launcher Improved Grenade Launcher Special Weapon Mining Laser Slashing Weapon Katana Piercing Weapon CR-A16's Pointy Stick Build | -11 -10 -10 -8 -8 -7 -7 -7 -7 -6 -6 -6 ------- Run | Yrd Mat Sub Mat Sto Fac Low Low Zio Pro Fac Low Slots Evolved 8 | . . . 4 . 2 . . . . 2 . Power . | . . . . . . . . . . . . Propulsion 2 | . . . 2 . . . . . . . . Utility 5 | . . . 2 . 1 . . . . 2 . Weapon 1 | . . . . . 1 . . . . . . Parts Attached 102 | 7 6 2 29 5 17 1 5 . 4 26 . Power 12 | 1 . . 4 1 2 . 1 . . 3 . Engine 7 | 1 . . 2 1 1 . 1 . . 1 . Core 5 | . . . 2 . 1 . . . . 2 . Reactor . | . . . . . . . . . . . . Propulsion 24 | 2 . . 8 . 7 . . . 1 6 . Treads 2 | 2 . . . . . . . . . . . Leg 22 | . . . 8 . 7 . . . 1 6 . Wheel . | . . . . . . . . . . . . Hover . | . . . . . . . . . . . . Flight . | . . . . . . . . . . . . Utility 37 | 2 3 1 11 2 5 . 2 . 2 9 . Device 16 | 1 1 1 8 . 2 . 1 . 1 1 . Storage 3 | 1 1 . . . . . . . . 1 . Processor 11 | . 1 . 3 1 2 . . . . 4 . Hackware 2 | . . . . 1 . . . . . 1 . Protection 5 | . . . . . 1 . 1 . 1 2 . Artifact . | . . . . . . . . . . . . Weapon 29 | 2 3 1 6 2 3 1 2 . 1 8 . Energy Gun 14 | 2 . . 3 2 2 . 1 . 1 3 . Energy Cannon 1 | . . . 1 . . . . . . . . Ballistic Gun 8 | . 2 1 . . . 1 . . . 4 . Ballistic Cannon 1 | . . . . . 1 . . . . . . Launcher 2 | . . . 1 . . . 1 . . . . Special Weapon 1 | . 1 . . . . . . . . . . Impact Weapon . | . . . . . . . . . . . . Slashing Weapon 1 | . . . 1 . . . . . . . . Piercing Weapon 1 | . . . . . . . . . . 1 . Special Melee Weapon . | . . . . . . . . . . . . Unidentified Prototypes 7 | . 1 1 1 2 . . . . . 2 . Parts Lost 24 | . 1 . 2 1 1 1 1 . 1 16 . Power 6 | . . . 1 1 . . . . . 4 . Propulsion 7 | . . . 1 . . . . . 1 5 . Utility 5 | . 1 . . . . 1 . . . 3 . Weapon 6 | . . . . . 1 . 1 . . 4 . Highest Loss Streak 12 | . 1 . 1 1 1 1 1 . 1 12 . To Critical Strikes . | . . . . . . . . . . . . Average Backups 15 | 3 11 14 14 14 14 14 14 15 14 17 4 Power . | . 1 1 . . 1 1 1 1 1 . . Propulsion 2 | 2 3 4 2 2 2 3 3 2 1 2 . Utility 6 | . 3 5 2 7 6 6 6 6 7 8 3 Weapon 5 | . 2 3 8 5 4 4 4 4 5 5 1 Tool/Special . | . . . . . . . . . . . . Unused Backups 49 | . 5 3 13 2 7 . 2 2 1 12 2 Power 2 | . . . 1 . 1 . . . . . . Propulsion 8 | . 3 1 3 . . . . . . 1 . Utility 17 | . 1 2 1 . 3 . . 1 . 7 2 Weapon 21 | . 1 . 7 2 3 . 2 1 1 4 . Tool/Special 1 | . . . 1 . . . . . . . . Average Slot Usage (%) 95 | . 95 97 90 90 93 99 99 100 99 98 6 Engine 5 | . 14 14 3 7 2 7 7 7 7 2 . Core 1 | . . . 4 . 4 . . . . 3 . Treads 4 | . 28 28 3 . . . . . . . . Leg 21 | . . . 20 25 22 30 30 30 29 25 . Device 10 | . 6 11 17 8 11 13 11 15 12 5 6 Storage 7 | . 14 14 7 8 7 7 7 7 7 5 . Processor 16 | . 2 . 15 22 19 15 15 15 15 24 . Hackware 1 | . . . . 1 . . . . . 5 . Energy Gun 10 | . . . 13 14 18 15 14 15 15 5 . Ballistic Gun 8 | . 25 24 . . . 6 6 7 7 12 . Peak Build Rating 74 | 7 14 18 55 55 63 61 63 63 65 74 6 Average Rating 52 | 5 11 11 48 54 60 60 60 62 62 68 6 On Entrance 37 | . 7 13 10 53 54 59 61 62 63 61 1 Avg Prop Armor Cover (%) 13 | . . . 13 . . . . . . . . Naked Turns 40 | . . . . . . . . . . 40 . Heaviest Build 74 | 15 32 33 40 39 50 50 52 44 48 74 1 Greatest Support 92 | 40 40 40 91 91 92 92 92 92 92 89 3 Greatest Overweight (x) 2 | . . . . . . . . . . 2 . Average Overweight (x) . | . . . . . . . . . . . . Largest Inventory Capacity 20 | 8 15 15 15 15 15 15 15 15 15 20 5 Average Capacity 15 | 7 13 15 15 15 15 15 15 15 15 18 5 Most Carried 20 | 7 15 15 15 15 15 15 15 15 15 20 4 Average Carried 15 | 3 11 14 14 14 14 14 14 15 14 17 4 Final Capacity 15 | 8 15 15 15 15 15 15 15 15 15 5 5 Final Carried 15 | 7 15 15 15 13 15 15 15 15 14 5 4 Class Distribution -------------------- 38% | Mutant 33% | Gunner 15% | Skirmisher 5% | Scavenger-Gunner 4% | Scavenger-Mutant Dominant Class ---------------- Mutant | -10/Materials Mutant | -10/Subcaves Mutant | -8/Materials Mutant | -8/Storage Skirmisher | -7/Factory Gunner | -7/Lower Caves Gunner | -7/Lower Caves Gunner | -7/Zion Gunner | -6/Proximity Caves Gunner | -6/Factory Gunner | -6/Lower Caves Resources | -11 -10 -10 -8 -8 -7 -7 -7 -7 -6 -6 -6 ----------- Run | Yrd Mat Sub Mat Sto Fac Low Low Zio Pro Fac Low Matter Collected 3510 | 157 480 31 556 189 240 163 288 10 123 1273 . Remotely . | . . . . . . . . . . . . Salvage Created 5605 | 122 925 43 1188 791 334 141 334 . 133 1594 . Parts 315 | 4 50 5 83 43 25 6 17 . 4 78 . Haulers Intercepted 11 | . 2 . 3 5 1 . . . . . . Recyclers Shooed 2 | . 2 . . . . . . . . . . Parts Field Recycled . | . . . . . . . . . . . . Retrieved Matter . | . . . . . . . . . . . . Parts Self-Destructed 20 | . . . . . . 5 8 . 7 . . Prevented 1 | . . . . . . . . . 1 . . Parts Restored . | . . . . . . . . . . . . Kills | -11 -10 -10 -8 -8 -7 -7 -7 -7 -6 -6 -6 ------- Run | Yrd Mat Sub Mat Sto Fac Low Low Zio Pro Fac Low Combat Hostiles Destroyed 104 | . 10 1 34 11 7 3 7 . 3 28 . Guns 94 | . 10 1 30 11 4 3 7 . 3 25 . Cannons 2 | . . . . . 2 . . . . . . AOE 8 | . . . 4 . 1 . . . . 3 . Classes Destroyed 16 | 2 4 1 4 1 3 . 1 . . . . Worker 3 | . . . . . 2 . . . . 1 . Builder 7 | . 3 . 2 1 1 . . . . . . Tunneler 1 | 1 . . . . . . . . . . . Hauler 11 | . 2 . 3 5 1 . . . . . . Recycler 6 | 1 3 . . 1 1 . . . . . . Mechanic 3 | . . . 1 1 . . . . . 1 . Operator 3 | . . . . 1 . . . . . 2 . Watcher 14 | . 3 . 4 1 3 . . . . 3 . Swarmer 18 | . . . 11 . 3 . . . . 4 . Grunt 49 | . 10 . 15 5 . 1 3 . 2 13 . Duelist 1 | . . . 1 . . . . . . . . Sentry 18 | . . . 7 6 2 1 . . . 2 . Hunter 4 | . . . . . 1 1 . . . 2 . Programmer 9 | . . . . . 1 . . . 1 7 . Subdweller 1 | . . 1 . . . . . . . . . Thug 2 | . . . . . . . 2 . . . . Butcher 1 | . . . . . . . 1 . . . . Mutant 1 | . . . . . . . 1 . . . . Best Kill Streak 6 | 1 6 1 5 3 5 1 4 . 2 5 . Combat Bots Only 5 | . 4 1 4 3 4 1 4 . 2 5 . Max Kills in Single Turn 3 | 1 1 1 2 2 3 1 1 . 1 2 . Gunslinging 1 | . . . 1 . . . . . . . . Exploded 2 | . . . 2 . 1 . . . . 2 . Melee . | . . . . . . . . . . . . Uniques/NPCs Destroyed . | . . . . . . . . . . . . Combat | -11 -10 -10 -8 -8 -7 -7 -7 -7 -6 -6 -6 -------- Run | Yrd Mat Sub Mat Sto Fac Low Low Zio Pro Fac Low Hostile Shots Fired 668 | . 51 2 91 34 53 25 24 . 24 363 1 Missed 244 | . 13 1 28 14 18 8 9 . 6 147 . Hits 424 | . 38 1 63 20 35 17 15 . 18 216 1 Melee 2 | . . . . . . . 1 . . 1 . Projectile 422 | . 38 1 63 20 35 17 14 . 18 215 1 AOE 3 | . . 2 . . . . . . . 1 . Critical Strikes 11 | . . . 2 . . . 1 . 2 6 . Actively Blocked 1 | . . . . . . . . . . 1 . Part Disruptions 3 | . . . . . . . . . . 3 . Actively Blocked 1 | . . . . . . . . . . 1 . Damage Taken 6865 | . 512 114 836 303 733 178 343 . 303 3527 16 Core 1321 | . 82 . 130 30 145 21 20 . 35 842 16 Absorbed by Shields . | . . . . . . . . . . . . Redirected to Shielding 111 | . . . . . . . . . . 111 . Regen/Repaired (Parts) 208 | . . . 41 . 68 . . . . 99 . Core Remaining (%) 76 | 100 . 67 . 70 . . . . 68 . . Volleys Fired 317 | 7 62 6 81 37 15 7 11 . 12 79 . Largest 3 | 2 2 2 2 2 3 3 3 . 3 3 . Hottest 225 | 100 100 100 150 150 225 183 183 . 178 156 . Shots Fired 706 | 14 108 8 147 74 45 20 31 . 36 223 . Gun 675 | 14 104 4 134 74 39 20 30 . 36 220 . Cannon 8 | . . . 2 . 6 . . . . . . Launcher 8 | . . . 4 . . . 1 . . 3 . Special 15 | . 4 4 7 . . . . . . . . Kinetic 291 | . 104 4 14 . 6 6 10 . 12 135 . Thermal 403 | 14 4 4 131 74 35 12 20 . 24 85 . Explosive 4 | . . . . . . . 1 . . 3 . Electromagnetic 8 | . . . 2 . 4 2 . . . . . Robot Hit Streak 32 | 5 18 8 19 28 12 30 32 . 9 14 . Robot Miss Streak 9 | 2 1 . 9 7 9 3 6 . 2 4 . Penetration Max 1 | . . . . . . . . . . 1 . Secondary Targets 12 | . 1 . 4 . . . 4 . . 3 . Max Gunslinging Chain 1 | . 1 . 1 . . . 1 . . 1 . Shots Hit Robots 532 | 9 80 4 119 65 33 15 25 . 27 155 . Core Hits 473 | 3 28 2 167 82 52 14 30 . 17 78 . Critical Kills 4 | . 1 . . . . . . . . 3 . Critical Parts Destroyed 3 | . . . . . . . . . . 3 . Critical Strikes 14 | 2 1 . . . . . . . 1 10 . Burn 7 | 2 . . . . . . . . 1 4 . Destroy 7 | . 1 . . . . . . . . 6 . Melee Attacks 64 | . . . 11 7 4 . . . . 42 . Impact . | . . . . . . . . . . . . Slashing 22 | . . . 11 7 4 . . . . . . Piercing 42 | . . . . . . . . . . 42 . Sneak Attacks 3 | . . . . 2 1 . . . . . . Combat Hostiles . | . . . . . . . . . . . . Follow-up Attacks . | . . . . . . . . . . . . Damage Inflicted 12628 | 108 1260 30 2769 1591 1390 293 607 . 567 4013 . Guns 10737 | 108 1260 30 2310 1397 585 293 551 . 567 3636 . Cannons 154 | . . . . . 154 . . . . . . Explosions 1384 | . . . 396 . 555 . 56 . . 377 . Melee 353 | . . . 63 194 96 . . . . . . Ramming . | . . . . . . . . . . . . Kinetic 4249 | . 1260 30 437 . 154 44 147 . 100 2077 . Thermal 7424 | 108 . . 2186 1397 1013 224 404 . 467 1625 . Explosive 550 | . . . 83 . 100 . 56 . . 311 . Electromagnetic 52 | . . . . . 27 25 . . . . . Impact . | . . . . . . . . . . . . Slashing 353 | . . . 63 194 96 . . . . . . Piercing . | . . . . . . . . . . . . Highest Corruption 10 | . . . . . 1 1 1 1 3 10 10 Average Corruption 1 | . . . . . 1 1 1 1 2 2 10 Corruption Purged . | . . . . . . . . . . . . Corruption Blocked . | . . . . . . . . . . . . Effects 31 | . . . . . 2 4 5 . 2 18 . Message Errors 7 | . . . . . 1 . 2 . . 4 . Matter Fused 8 | . . . . . 1 2 1 . 1 3 . Heat Flow Errors 3 | . . . . . . . 1 . . 2 . Energy Discharges 4 | . . . . . . 1 . . 1 2 . Parts Fused 1 | . . . . . . . . . . 1 . Data Loss (minor) 3 | . . . . . . . . . . 3 . Data Loss (major) 2 | . . . . . . . . . . 2 . Misfires 3 | . . . . . . 1 1 . . 1 . Overload Shots 3 | . . . . . . . . . . 3 . Effects 1 | . . . . . . . . . . 1 . Heat Surge 1 | . . . . . . . . . . 1 . Overflow Damage 130 | . . . . 10 118 . . . . 2 . Projectiles 12 | . . . . . 12 . . . . . . Explosions 102 | . . . . . 100 . . . . 2 . Melee 16 | . . . . 10 6 . . . . . . Knockbacks 2 | . . . . . 2 . . . . . . Impact . | . . . . . . . . . . . . Kinetic 2 | . . . . . 2 . . . . . . Secondary . | . . . . . . . . . . . . Self-Inflicted Damage 360 | . . . . . 319 . 41 . . . . Shots 6 | . . . . . 5 . 1 . . . . Rammed . | . . . . . . . . . . . . Targets Rammed . | . . . . . . . . . . . . Kicked . | . . . . . . . . . . . . Crushed . | . . . . . . . . . . . . Highest Temperature 538 | 117 40 . 426 255 538 177 270 . 371 495 . Average Temperature 92 | 48 9 . 72 81 167 76 114 . 163 92 . Received Heat Transfer 1434 | . 276 . 333 108 . 42 135 . 75 465 . Effects 16 | . . . . 3 2 . 4 . 3 4 . Shutdowns 3 | . . . . . 1 . . . . 2 . Energy Bleed 3 | . . . . . 1 . 1 . . 1 . Interference 8 | . . . . 3 . . 3 . 2 . . Short Circuit 2 | . . . . . . . . . 1 1 . Siege Activations . | . . . . . . . . . . . . Martial Activations . | . . . . . . . . . . . . Shielding Activations . | . . . . . . . . . . . . Robots Disrupted . | . . . . . . . . . . . . Combat Hostiles . | . . . . . . . . . . . . Robots Corrupted . | . . . . . . . . . . . . Combat Hostiles . | . . . . . . . . . . . . Parts Fried . | . . . . . . . . . . . . Impact Corruptions . | . . . . . . . . . . . . Robots Melted . | . . . . . . . . . . . . Combat Hostiles . | . . . . . . . . . . . . Parts Melted 14 | 2 . . . 1 . . 2 . 2 7 . Heat Transferred 8783 | 481 . . 1820 1160 765 395 640 . 695 2827 . Parts Sabotaged 3 | . . . . . . . . . . 3 . Parts Stolen . | . . . . . . . . . . . . Parts Stripped . | . . . . . . . . . . . . Power Chain Reactions . | . . . . . . . . . . . . Alert | -11 -10 -10 -8 -8 -7 -7 -7 -7 -6 -6 -6 ------- Run | Yrd Mat Sub Mat Sto Fac Low Low Zio Pro Fac Low Maximum Alert Level 2 | . . . 2 1 1 . . . . 2 . Low Security (%) 64 | 100 100 . 60 83 87 . . . . 37 . Level 1 16 | . . . 22 16 12 . . . . 19 . Level 2 19 | . . . 16 . . . . . . 42 . Level 3 . | . . . . . . . . . . . . Level 4 . | . . . . . . . . . . . . Level 5 . | . . . . . . . . . . . . High Security . | . . . . . . . . . . . . Max Security . | . . . . . . . . . . . . Peak Influence 643 | 5 84 . 574 243 228 . . . . 643 . Initial 234 | . . . . 234 62 . . . . 2 . Average 181 | . 26 . 204 108 127 . . . . 277 . Influence Increases 3747 | 10 352 . 1102 442 487 70 60 . 164 1060 . Destroy 0b10 Robot/C 2000 | . 200 . 680 220 140 60 60 . 80 560 . Destroy 0b10 Robot/NC 245 | 10 55 . 50 55 40 . . . . 35 . Destroy Leader 548 | . 50 . 164 82 56 10 . . 20 166 . Allied During Kill 4 | . . . . . . . . . 4 . . Successful Hack 122 | . 27 . 27 26 22 . . . . 20 . Select Force Hacks 30 | . . . . 30 . . . . . . . Disable Machine 330 | . 15 . 75 15 135 . . . . 90 . Destroy Structure 258 | . 5 . 46 14 94 . . . . 99 . Lose Combat Pursuer 210 | . . . 60 . . . . . 60 90 . Influence Decreases 3423 | 10 313 39 548 859 455 239 60 . 159 548 193 Entered New Map 673 | . . 19 . 320 75 63 . . . 3 193 Time Decay 2495 | 10 303 20 538 529 370 166 60 . 114 385 . Lost Part 220 | . 10 . 10 10 10 10 . . 10 160 . Lost Ally 35 | . . . . . . . . . 35 . . Squads Dispatched 22 | . 1 . 6 1 2 . . . . 12 . Investigation 4 | . . . 2 1 . . . . . 1 . Extermination 9 | . . . . . 2 . . . . 7 . Reinforcement 6 | . 1 . 2 . . . . . . 3 . Assault . | . . . . . . . . . . . . Garrison 3 | . . . 2 . . . . . . 1 . Intercept . | . . . . . . . . . . . . Searches Triggered . | . . . . . . . . . . . . Construction Impeded . | . . . . . . . . . . . . Haulers Reinforced . | . . . . . . . . . . . . Active Scanning Responses . | . . . . . . . . . . . . Cargo Convoy Interrupts 1 | . . . . . . . . . . 1 . Stealth | -11 -10 -10 -8 -8 -7 -7 -7 -7 -6 -6 -6 --------- Run | Yrd Mat Sub Mat Sto Fac Low Low Zio Pro Fac Low Distress Signals 7 | . 1 . 3 1 1 . . . . 1 . Communications Jammed . | . . . . . . . . . . . . Distress Signals . | . . . . . . . . . . . . Times Spotted 167 | . 18 2 46 15 13 3 7 . 6 54 3 Peak Tracking Total 12 | . 6 1 4 2 4 1 4 . 3 12 3 Tactical Retreats 8 | . . . 3 . . . . . 2 3 . Traps | -11 -10 -10 -8 -8 -7 -7 -7 -7 -6 -6 -6 ------- Run | Yrd Mat Sub Mat Sto Fac Low Low Zio Pro Fac Low Traps Triggered 3 | . 1 . 2 . . . . . . . . Indirectly . | . . . . . . . . . . . . Trap Hack Attempts . | . . . . . . . . . . . . Triggered . | . . . . . . . . . . . . Disarmed . | . . . . . . . . . . . . Reprogrammed . | . . . . . . . . . . . . Reused . | . . . . . . . . . . . . Traps Extracted . | . . . . . . . . . . . . Installed . | . . . . . . . . . . . . Triggered . | . . . . . . . . . . . . Machines | -11 -10 -10 -8 -8 -7 -7 -7 -7 -6 -6 -6 ---------- Run | Yrd Mat Sub Mat Sto Fac Low Low Zio Pro Fac Low Machines Disabled 23 | . 1 1 5 1 9 . . . . 6 . Max in Single Turn 5 | . 1 1 2 1 5 . . . . 2 . Machines Repaired . | . . . . . . . . . . . . Machines Dismantled . | . . . . . . . . . . . . Machines Sabotaged . | . . . . . . . . . . . . Overloaded Fab Kills . | . . . . . . . . . . . . Hacking | -11 -10 -10 -8 -8 -7 -7 -7 -7 -6 -6 -6 --------- Run | Yrd Mat Sub Mat Sto Fac Low Low Zio Pro Fac Low Machines Accessed 41 | . 7 1 7 11 6 1 . . . 8 . Terminals 25 | . 7 . 5 7 2 . . . . 4 . Fabricators 2 | . . . . . 2 . . . . . . Repair Stations 5 | . . . 1 1 1 . . . . 2 . Recycling Units 2 | . . . . 2 . . . . . . . Scanalyzers 3 | . . . 1 . 1 . . . . 1 . Garrison Access 2 | . . . . 1 . . . . . 1 . Total Hacks 112 | . 21 1 25 29 14 1 . . . 21 . Successful 62 | . 10 1 16 15 8 1 . . . 11 . Failed 49 | . 11 . 8 14 6 . . . . 10 . Catastrophic 2 | . . . 1 1 . . . . . . . Database Lockouts 1 | . . . 1 . . . . . . . . Manual 53 | . 12 . 16 15 2 . . 1 . 7 . Terminals 76 | . 21 . 18 22 4 . . . . 11 . Fabricators 5 | . . . . . 5 . . . . . . Repair Stations 14 | . . . 2 4 3 . . . . 5 . Recycling Units 2 | . . . . 2 . . . . . . . Scanalyzers 10 | . . . 5 . 2 . . . . 3 . Garrison Access 3 | . . . . 1 . . . . . 2 . Terminal Hacks 17 | . 5 1 2 5 1 1 . . . 2 . Part Schematic 1 | . . . . 1 . . . . . . . Robot Analysis 2 | . . . . 2 . . . . . . . Prototype ID Bank 3 | . 1 . . 1 1 . . . . . . Open Door 1 | . . . . . . 1 . . . . . Branch Access Points 1 | . 1 . . . . . . . . . . Emergency Access Points 2 | . 2 . . . . . . . . . . Terminal Index 3 | . . . 1 1 . . . . . 1 . Locate Traps 1 | . 1 . . . . . . . . . . Zone Layout 2 | . . . 1 . . . . . . 1 . Proto ID Catalog 1 | . . 1 . . . . . . . . . Fabricator Hacks 2 | . . . . . 2 . . . . . . Network Status 2 | . . . . . 2 . . . . . . Repair Station Hacks 8 | . . . 2 1 2 . . . . 3 . Scan Component 5 | . . . 1 1 1 . . . . 2 . Repair 3 | . . . 1 . 1 . . . . 1 . Recycling Unit Hacks 1 | . . . . 1 . . . . . . . Report Inventory 1 | . . . . 1 . . . . . . . Scanalyzer 7 | . . . 4 . 2 . . . . 1 . Insert Component 3 | . . . 2 . 1 . . . . . . Analyze 1 | . . . . . 1 . . . . . . Retrieve Study 3 | . . . 2 . . . . . . 1 . Garrison Access Hacks . | . . . . . . . . . . . . Unauthorized Hacks 27 | . 5 . 8 8 1 . . . . 5 . Terminals 26 | . 5 . 8 7 1 . . . . 5 . Botnet 13 | . 4 . 3 2 1 . . . . 3 . Skim 13 | . 1 . 5 5 . . . . . 2 . Fabricators . | . . . . . . . . . . . . Repair Stations . | . . . . . . . . . . . . Recycling Units 1 | . . . . 1 . . . . . . . Tunnel 1 | . . . . 1 . . . . . . . Scanalyzers . | . . . . . . . . . . . . Garrison Access . | . . . . . . . . . . . . Data Cores Recovered 1 | . . . . 1 . . . . . . . Used 1 | . . . . 1 . . . . . . . Hacking Detections 36 | . 7 . 6 9 6 . . . . 8 . Full Trace Events 1 | . . . . . . . . . . 1 . Feedback Events . | . . . . . . . . . . . . Feedback Blocked . | . . . . . . . . . . . . Robot Schematics Acquired 2 | . . . . . . . . 2 . . . Robots Built . | . . . . . . . . . . . . Authchips . | . . . . . . . . . . . . Time . | . . . . . . . . . . . . Total Robot Build Rating . | . . . . . . . . . . . . Part Schematics Acquired 16 | . . . . 1 . . . 15 . . . Parts Built . | . . . . . . . . . . . . Authchips . | . . . . . . . . . . . . Time . | . . . . . . . . . . . . Total Part Build Rating . | . . . . . . . . . . . . Part Studies Acquired 3 | . . . 2 . . . . . . 1 . Parts Repaired 3 | . . . 1 . 1 . . . . 1 . Time 161 | . . . 70 . 35 . . . . 56 . Parts Recycled . | . . . . . . . . . . . . Recycled Matter . | . . . . . . . . . . . . Retrieved Matter . | . . . . . . . . . . . . Retrieved Components . | . . . . . . . . . . . . Parts Scanalyzed 1 | . . . . . 1 . . . . . . Part Schematics Acquired . | . . . . . . . . . . . . Parts Damaged . | . . . . . . . . . . . . Bothacking | -11 -10 -10 -8 -8 -7 -7 -7 -7 -6 -6 -6 ------------ Run | Yrd Mat Sub Mat Sto Fac Low Low Zio Pro Fac Low Used RIF Installer . | . . . . . . . . . . . . Robots Hacked . | . . . . . . . . . . . . Non-combat . | . . . . . . . . . . . . Combat . | . . . . . . . . . . . . Robot Hacks Applied . | . . . . . . . . . . . . Relay Couplers Released . | . . . . . . . . . . . . Fabnet Peak Effective % . | . . . . . . . . . . . . Robots Rewired 2 | . . . . . . . 2 . . . . Allies Hacked . | . . . . . . . . . . . . Hacks Repelled . | . . . . . . . . . . . . Allies | -11 -10 -10 -8 -8 -7 -7 -7 -7 -6 -6 -6 -------- Run | Yrd Mat Sub Mat Sto Fac Low Low Zio Pro Fac Low Total Allies 2 | . . . . . . . 2 . . . . Largest Group 2 | . . . . . . . 2 2 2 . . Highest-Rated Group 62 | . . . . . . . 62 62 62 . . Highest-Rated Ally 31 | . . . . . . . 31 31 31 . . Total Orders . | . . . . . . . . . . . . Ally Attacks 6 | . . . . . . . . . 6 . . Total Damage 67 | . . . . . . . . . 67 . . Kills 1 | . . . . . . . . . 1 . . Allies Corrupted . | . . . . . . . . . . . . Allies Melted . | . . . . . . . . . . . . Intel | -11 -10 -10 -8 -8 -7 -7 -7 -7 -6 -6 -6 ------- Run | Yrd Mat Sub Mat Sto Fac Low Low Zio Pro Fac Low Active Infowar (turns) 10875 | 57 539 554 2345 1528 932 838 362 1104 343 2270 3 Sensors 9020 | . . . 2344 1145 801 838 352 1104 342 2094 . Terrain 4565 | . . . 814 . 644 809 350 1104 341 500 3 Structural 562 | . 8 554 . . . . . . . . . Traps 110 | . . . . . 110 . . . . . . Seismic 588 | 57 531 . . . . . . . . . . Machine Analysis 1024 | . . . . 1024 . . . . . . . Robot Analysis Total 2 | . . . . 2 . . . . . . . Derelict Logs Recovered 5 | . . . . . . . 1 2 2 . . Drone Launches . | . . . . . . . . . . . . Drone Recoveries . | . . . . . . . . . . . . Exploration | -11 -10 -10 -8 -8 -7 -7 -7 -7 -6 -6 -6 ------------- Run | Yrd Mat Sub Mat Sto Fac Low Low Zio Pro Fac Low Turns Passed 13240 | 137 1159 667 2346 1528 947 980 652 1104 457 3260 3 Spaces Moved 7334 | 63 564 392 990 606 586 726 437 821 299 1847 3 Core 83 | 1 . . . . . . . . . 79 3 Treads 1018 | 62 564 392 . . . . . . . . . Legs 6233 | . . . 990 606 586 726 437 821 299 1768 . Wheels . | . . . . . . . . . . . . Hover . | . . . . . . . . . . . . Flight . | . . . . . . . . . . . . Fastest Speed 50 | 50 160 160 123 123 120 120 120 120 120 50 50 Average Speed 126 | 158 160 160 124 123 122 120 120 120 120 119 50 Slowest Speed 220 | 160 160 160 130 123 125 120 120 120 122 220 50 Overloaded Moves . | . . . . . . . . . . . . Propulsion Burnouts . | . . . . . . . . . . . . Robots Hopped . | . . . . . . . . . . . . Potential Cave-ins . | . . . . . . . . . . . . Cave-ins Triggered . | . . . . . . . . . . . . Exploration Rate (%) 47 | 4 83 18 72 66 16 64 60 83 64 41 2 Regions Visited 11 Branch Regions 7 Pre-discovered Areas 8 | . . . 3 4 . . . 1 . . . Known Exits Taken 5 | . . . 1 1 1 . . . 1 1 . Unknown Exits Taken 6 | 1 1 1 . . . 1 1 1 . . . Scrap Searched 16 | . . . . . . 6 4 3 3 . . Spaces Dug 65 | . 2 . 13 4 2 . . . . 44 . Terrain Destroyed 280 | . 2 . 40 13 104 . 14 . 1 106 . Melee 56 | . . . 8 4 2 . . . . 42 . Projectile 15 | . 2 . 5 . . . 1 . 1 6 . AOE 209 | . . . 27 9 102 . 13 . . 58 . Terrain Rammed . | . . . . . . . . . . . . Walls Destroyed . | . . . . . . . . . . . . Machines Disabled . | . . . . . . . . . . . . Actions | -11 -10 -10 -8 -8 -7 -7 -7 -7 -6 -6 -6 --------- Run | Yrd Mat Sub Mat Sto Fac Low Low Zio Pro Fac Low Total 10528 | 83 707 417 1930 1300 778 814 533 944 370 2648 4 Wait 2345 | . 52 9 736 630 118 67 24 114 44 551 . Move 7323 | 62 563 391 989 605 585 725 436 820 298 1846 3 Hop . | . . . . . . . . . . . . Pick Up 111 | 7 14 2 27 4 15 3 5 5 4 25 . Fast Attach 34 | 7 3 2 6 1 4 . 2 . 1 8 . Attach 35 | . . . 9 2 5 1 . . 1 16 1 Detach 2 | . . . 1 . . . . . . 1 . Swap 157 | . 4 1 35 10 14 9 22 . 5 57 . Drop 115 | . 9 6 35 4 18 2 8 5 5 23 . Fire 317 | 7 62 6 81 37 15 7 11 . 12 79 . Melee 64 | . . . 11 7 4 . . . . 42 . Ram . | . . . . . . . . . . . . Kick . | . . . . . . . . . . . . Crush . | . . . . . . . . . . . . Escape Stasis . | . . . . . . . . . . . . Rewire 25 | . . . . . . . 25 . . . . Trap . | . . . . . . . . . . . . Miscellaneous . | . . . . . . . . . . . . Route ------- -11/Scrapyard -10/Materials (discovered 5 exits: [*Mat x2] / *Min x2 / *Sub) -10/Subcaves -8/Materials (discovered 4 exits: *Fac x3 / *Sto) -8/Storage (discovered 2 exits: *Fac / Rec) -7/Factory (discovered 3 exits: Fac / *Low x2) -7/Lower Caves -7/Lower Caves (discovered 2 exits: *Fac / *Zio) -7/Zion -6/Proximity Caves -6/Factory (discovered 3 exits: *Fac x2 / *Low) -6/Lower Caves History --------- Turn | Location | Event 18 | -11/Scrapyard | Discovered new exit (range 15) 138 | -11/Scrapyard | Entered Materials 138 | -10/Materials | Discovered new exit (range 14) 312 | -10/Materials | Build established: Mutant 353 | -10/Materials | Discovered new exit (range 14) 781 | -10/Materials | Identified exit to Mines 1034 | -10/Materials | Discovered new exit (range 11) 1274 | -10/Materials | Discovered new exit (range 6) 1297 | -10/Materials | Entered Subcaves 1533 | -10/Subcaves | Discovered new exit (range 15) 1836 | -10/Subcaves | Visited 4L-MR0's lab 1853 | -10/Subcaves | Found Prototype Device 1853 | -10/Subcaves | Identified Sfc. Transmogrifier 1863 | -10/Subcaves | Found Cargo Legs 1964 | -10/Subcaves | Entered Materials 1964 | -8/Materials | Evolved 4 slots: Propulsion x2, Utility x2 1965 | -8/Materials | Attached Cargo Legs, gained temporary slots: Utility x2 2204 | -8/Materials | Garrison activated, responded to threat 2261 | -8/Materials | Build established: Skirmisher 2972 | -8/Materials | Build established: Scavenger-Mutant 3012 | -8/Materials | Repaired Imp. Spread Laser 3457 | -8/Materials | Build established: Mutant 3657 | -8/Materials | Discovered new exit (range 8) 3672 | -8/Materials | Central database locked down 3898 | -8/Materials | Garrison activated, responded to threat 4079 | -8/Materials | Discovered new exit (range 7) 4092 | -8/Materials | Identified exit to Storage 4182 | -8/Materials | Learned Factory security intel 4258 | -8/Materials | Learned location of Extension (-5) 4260 | -8/Materials | Learned Factory trap positions 4270 | -8/Materials | Identified exit to Factory 4310 | -8/Materials | Entered Storage 5035 | -8/Storage | Build established: Skirmisher 5260 | -8/Storage | Learned Factory security intel 5332 | -8/Storage | Learned location of Recycling (-8) 5353 | -8/Storage | Loaded intel: 13 trap records 5366 | -8/Storage | Identified exit to Recycling 5367 | -8/Storage | Learned 4 Lower Caves zone layouts 5370 | -8/Storage | Learned Factory emergency access door positions 5400 | -8/Storage | Learned location of 1 exit from Recycling 5447 | -8/Storage | Build established: Mutant 5838 | -8/Storage | Entered Factory 5838 | -7/Factory | Evolved 2 slots: Utility x1, Weapon x1 5839 | -7/Factory | Identified exit to Factory 5839 | -7/Factory | Identified exit to Lower Caves 5840 | -7/Factory | Loaded intel: 111 trap records 6094 | -7/Factory | Discovered exit to Lower Caves (range 14) 6142 | -7/Factory | Build established: Skirmisher 6182 | -7/Factory | Found Prototype Launcher 6709 | -7/Factory | Repaired Imp. Spread Laser 6785 | -7/Factory | Entered Lower Caves 7150 | -7/Lower Caves | Encountered a Warlord checkpoint 7264 | -7/Lower Caves | Build established: Gunner 7659 | -7/Lower Caves | Attracted the attention of an 0b10 checkpoint 7697 | -7/Lower Caves | Discovered new exit (range 5) 7765 | -7/Lower Caves | Entered another Lower Caves area 7819 | -7/Lower Caves | Discovered exit to Factory (range 4) 7841 | -7/Lower Caves | Learned Factory trap positions 8108 | -7/Lower Caves | Encountered a Warlord checkpoint 8207 | -7/Lower Caves | Attacked by a faux Warlord 8398 | -7/Lower Caves | Discovered new exit (range 15) 8417 | -7/Lower Caves | Entered Zion 8417 | -7/Zion | Accompanied by 2 allies 8452 | -7/Zion | System corruption cleaned by Quarantine Array 8500 | -7/Zion | Received a hallucinogenic algorithm 8500 | -7/Zion | Ran a hallucination algorithm 9003 | -7/Zion | Learned Factory emergency access door positions 9036 | -7/Zion | Given the Hacking Drone Bay 9044 | -7/Zion | Found Prototype Device 9118 | -7/Zion | Met Imprinter 9309 | -7/Zion | Given A8's code to call for help 9500 | -7/Zion | Found CR-A16's Pointy Stick 9507 | -7/Zion | Discovered new exit (range 9) 9521 | -7/Zion | Entered Proximity Caves 9521 | -6/Proximity Caves | Accompanied by 2 allies 9531 | -6/Proximity Caves | Learned location of 1 exit from Factory 9563 | -6/Proximity Caves | Learned Factory garrison access intel 9851 | -6/Proximity Caves | Discovered exit to Factory (range 9) 9978 | -6/Proximity Caves | Entered Factory 9978 | -6/Factory | Evolved 2 slots: Utility x2 9979 | -6/Factory | Identified exit to Factory 9980 | -6/Factory | Loaded intel: 122 trap records 9983 | -6/Factory | Loaded intel: 4 garrison access locations 10067 | -6/Factory | Build established: Scavenger-Gunner 10105 | -6/Factory | Garrison activated, responded to threat 10643 | -6/Factory | Build established: Gunner 10653 | -6/Factory | Discovered new exit (range 14) 10668 | -6/Factory | Identified exit to Lower Caves 10832 | -6/Factory | Repaired Thunder Leg? 11908 | -6/Factory | Discovered exit to Factory (range 9) 13146 | -6/Factory | Cargo convoy interrupted 13174 | -6/Factory | System corruption reached 10% 13185 | -6/Factory | Core integrity fell below 50% 13198 | -6/Factory | Released all parts (9) 13201 | -6/Factory | Core integrity fell below 20% 13226 | -6/Factory | Lost 12 parts (2p5n3u2w) 13238 | -6/Factory | Entered Lower Caves 13241 | -6/Lower Caves | Destroyed by S-27 Virus with Autogun Last Messages --------------- 13200_ Penetrated by Slug. 13200_ U-05 Engineer lays Concrete. 13201_ Lgt. Angular Momentum Engine tumbles out of recycling unit. 13201_ Slug penetrates Recycling Unit. 13201_ Slug penetrates Wall. 13201_ K-01 Serf collects debris. 13201_ U-05 Engineer lays Concrete. 13202_ Penetrated by Slug. 13202_ U-05 Engineer lays Concrete. 13205_ System corrupted: Matter fused (-9). 13205_ U-05 Engineer lays Concrete. 13206_ U-05 Engineer builds a Wall. 13206_ Acquired 41 matter. 13235_ YZ:CWSUU6V=IPYBWL4HCFG%T 13238_ ALERT: Potential suspicious activity detected, Programmers report to Factory Zone 7I. LOCATION=LOWER CAVES GOAL=ESCAPE Map ----- +----------------------------------------------------+ | ?????????????????????????????????????????????????? | | ?????????????????????????????????????????????????? | | ?????????????????????????????????????????????????? | | ?????????????????????????????????????????????????? | | ?????????????????????????????????????????????????? | | ?????????????????????????????????????????????????? | | ?????????????????????????????????????????????????? | | ?????????????????????????????????????????????????? | | ?????????????????????????????????????????????????? | | ?????????????????????????????????????????????????? | | ?????????????????????????????????????????????????? | | ?????????????????????????????????#???????????????? | | ?????????????????????????????????????????????????? | | ?????????????????????????????????????????????????? | | ?????????????????????????????????????????????????? | | ?????????????? ??????????????????????????????????? | | ?????????????????????????????????????????????????? | | ?????????????????????????????????????????????????? | | ?????????????????????????????????????????????????? | | ????????????????????????????????#????????????????? | | ??????????????????????????????? #????????????????? | | ???????????????????????????### ########?????????? | | ????????????# ???????????## # ?????????? | | ????????????# s ??????## #???????????????? | | ?????????? Y ### # ##???????????????? | | ?????????? s @# ##????????????????? | | ??????????????# #### ##?????????????????? | | ???????????#??## ???????#####??????????????????? | | ?????????????????????????????????????????????????? | | ???????????????????????????????????#?????????????? | | ?????????????????????????????????????????????????? | | ?????????????????????????????????????????????????? | | ?????????????????????????????????????????????????? | | ?????????????????????????????????????????????????? | | ?????????????????????????????????????????????????? | | ?????????????????????????????????????????????????? | | ?????????????????????????????????????????????????? | | ?????????????????????????????????????????????????? | | ?????????????????????????????????????????????????? | | ???????????????????????#?????????????????????????? | | ?????????????????????#???????????????????????????? | | ?????????????????????????????????????????????????? | | ?????????????????????????????????????????????????? | | ?????????????????????????????????????????????????? | | | | | | | | | | | | | +----------------------------------------------------+ Best States ------------- Heat Dissipation 56 Energy Generation 18 Energy Capacity 290 Matter Stores 300 Matter Capacity 300 Sight Range 16 Robot Scan Range 15 Terrain Scan Range 20 Terrain Scan Density 110 Armor Coverage 225 Propulsion Shielding 66 Evasion (%) 70 Targeting Accuracy 8 Target Analysis 5 Core Analysis 6 Recoil Reduction 2 Offensive Hacking 11 Item Schematics ----------------- Gauss Rifle | -8/Storage | Hacked Gatling Laser | -7/Zion | Archive Hpw. Shock Rifle | -7/Zion | Archive Magnetic Acceleration Cannon | -7/Zion | Archive Med. Treads | -7/Zion | Archive Phase Cannon | -7/Zion | Archive Gauss Cannon | -7/Zion | Archive Imp. Weapon Cycler | -7/Zion | Archive Lrn. Tractor Beam | -7/Zion | Archive Kinecellerator | -7/Zion | Archive Hyp. Gauss Rifle | -7/Zion | Archive Spear | -7/Zion | Archive Thermal Shield | -7/Zion | Archive Imp. Deuterium Engine | -7/Zion | Archive Angular Momentum Engine | -7/Zion | Archive Imp. EM Pulse Cannon | -7/Zion | Archive Robot Schematics ------------------ S-27 Virus | -7/Zion | Archive K-01 Serf | -7/Zion | Archive Fabricated ------------ Nothing Repaired ---------- Imp. Spread Laser | 62% | -8/Materials Imp. Spread Laser | 38% | -7/Factory Thunder Leg | 31% | -6/Factory Studied --------- Katana | -8/Materials | Hacked Minigun | -8/Materials | Hacked Hvy. Machine Gun | -6/Factory | Hacked Alien Tech Used ----------------- None Achievements -------------- None Challenges ------------ None Game ------ Seed AlertTitaniumPropulsion Manual? 0 Play Time 02:18:24 Cumulative 105.0 hours Start 2026.07.06 @ 16:56:01 End 2026.07.08 @ 06:27:50 Sessions 7 Manual Loads 0 Difficulty Rogue Special Mode None Game No. 111 Rogue 104 Adventurer 0 Explorer 7 Win Type - Total 1 Types 1/0/0/0/0/0/0/0/0/0 Lore% 32 Gallery% 40 Achievement% 34 Wizard Run 0 Options --------- Layout 1 ASCII 0 Keyboard 0 Movement Numpad Keybinds 0 Fullscreen 2 Font 32/SmallcapsGlow Map View 50x35 Zoom Use 0% Tactical HUD 1 Map Filters NONE Filters NONE Steam 1 RUN: d3d29935-29f0-4e8a-a8e5-81afa693720d